fUSD/lending_fUSD_20260301
["ID","MTS","AMOUNT","RATE_DAILY","PERIOD"]
[406944475,1772325042419,-500.0,0.00014073,2]
[406944476,1772325042428,-500.0,0.00014073,2]
[406944477,1772325042437,-500.0,0.00014073,2]
[406944478,1772325042447,-500.0,0.00014073,2]
[406944479,1772325042457,-500.0,0.00014073,2]
[406944480,1772325042469,-500.0,0.00014073,2]
[406944481,1772325042478,-500.0,0.00014073,2]
[406944482,1772325042493,-447.26161919,0.00014073,2]
[406944483,1772325042503,-500.0,0.00014073,2]
[406944484,1772325042513,-269.917619,0.00014073,2]
[406944485,1772325042523,-151.0,0.00014073,2]
[406944486,1772325042534,-500.0,0.00014073,2]
[406944487,1772325042543,-500.0,0.00014073,2]
[406944488,1772325042553,-500.0,0.00014073,2]
[406944489,1772325042562,-500.0,0.00014073,2]
[406944490,1772325042574,-500.0,0.00014073,2]
[406944491,1772325042583,-151.0,0.00014073,2]
[406944492,1772325042592,-668.65185757,0.00014073,2]
[406944493,1772325042601,-267.46074303,0.00014073,2]
[406944494,1772325042610,-151.0,0.00014073,2]
[406944495,1772325042620,-521.62,0.00014073,2]
[406944496,1772325042628,-200.0,0.00014094,2]
[406944497,1772325042636,-523.0,0.0001411,2]
[406944498,1772325042645,-305.55786491,0.00014115,2]
[406944499,1772325042654,-151.0,0.00014128,2]
[406944500,1772325042664,-693.3919763,0.00014128,2]
[406944501,1772325042674,-151.0,0.00014183,2]
[406944502,1772325042683,-719.04747942,0.00014183,2]
[406944503,1772325042692,-173.950041,0.00014183,2]
[406944504,1772325042701,-173.950041,0.00014183,2]
[406944505,1772325042711,-173.950041,0.00014183,2]
[406944506,1772325042720,-173.950037,0.00014183,2]
[406944507,1772325042730,-151.0,0.00014238,2]
[406944508,1772325042739,-745.65223616,0.00014238,2]
[406944509,1772325042748,-9031.18,0.00014258,2]
[406944510,1772325042757,-773.2413689,0.00014293,2]
[406944511,1772325042766,-166.66,0.00014331,2]
[406944512,1772325042775,-521.62,0.00014347,2]
[406944513,1772325042785,-801.85129955,0.00014348,2]
[406944514,1772325042794,-6178.14727256,0.00014348,2]
[406944515,1772325042804,-325.829212,0.00014348,2]
[406944516,1772325042813,-325.829212,0.00014348,2]
[406944517,1772325042823,-325.829212,0.00014348,2]
[406944518,1772325042832,-325.829212,0.00014348,2]
[406944519,1772325042842,-350.0,0.00014355,2]
[406944520,1772325042852,-5507.95366483,0.00014362,2]
[406944521,1772325042861,-5000.0,0.00014362,2]
[406944522,1772325042873,-2749.7,0.00014384,2]
[406944523,1772325042882,-480.0,0.00014391,2]
[406944524,1772325042892,-831.51979763,0.00014403,2]
[406944525,1772325042902,-684.0,0.00014434,3]
[406944526,1772325042912,-151.0,0.00014445,2]
[406944527,1772325042921,-151.0,0.00014445,2]
[406944528,1772325042931,-156.738504,0.00014445,2]
[406944529,1772325042940,-151.0,0.00014445,2]
[406944530,1772325042949,-151.0,0.00014445,2]
[406944531,1772325042958,-151.0,0.00014445,2]
[406944532,1772325042967,-325.829212,0.00014445,2]
[406944533,1772325042976,-325.829212,0.00014445,2]
[406944534,1772325042986,-325.829212,0.00014445,2]
[406944535,1772325042995,-325.829209,0.00014445,2]
[406944536,1772325043004,-1000.0,0.00014445,2]
[406944537,1772325043013,-99416.97375681,0.00014445,2]
[406944538,1772325043023,-862.28603014,0.00014458,2]
[406944539,1772325043032,-8345.0,0.00014459,2]
[406944540,1772325043041,-894.19061326,0.00014513,2]
[406944541,1772325043050,-587.0,0.00014557,2]
[406944542,1772325043059,-927.27566595,0.00014568,2]
[406944543,1772325043068,-521.62,0.00014621,2]
[406944544,1772325043077,-961.58486559,0.00014623,2]
[406944545,1772325043086,-997.16350561,0.00014678,2]
[406944546,1772325043095,-500.0,0.00014773,2]
[406944547,1772325043104,-515.31004766,0.00014773,2]
[406944548,1772325043114,-500.0,0.00014773,2]
[406944549,1772325043124,-500.0,0.00014773,2]
[406944550,1772325043133,-529.02288049,0.00014773,2]
[406944551,1772325043145,-500.0,0.00014773,2]
[406944552,1772325043154,-500.0,0.00014773,2]
[406944553,1772325043163,-500.0,0.00014773,2]
[406944554,1772325043172,-500.0,0.00014773,2]
[406944555,1772325043182,-500.0,0.00014773,2]
[406944556,1772325043191,-500.0,0.00014773,2]
[406944557,1772325043200,-500.0,0.00014773,2]
[406944558,1772325043209,-500.0,0.00014773,2]
[406944559,1772325043219,-500.0,0.00014773,2]
[406944560,1772325043228,-500.0,0.00014773,2]
[406944561,1772325043237,-500.0,0.00014773,2]
[406944562,1772325043246,-541.26009197,0.00014773,2]
[406944563,1772325043256,-500.0,0.00014773,2]
[406944564,1772325043265,-500.0,0.00014773,2]
[406944565,1772325043274,-500.0,0.00014773,2]
[406944567,1772325043283,-182.34,0.000148,2]
[406944568,1772325043292,-157.79,0.00014817,2]
[406944569,1772325043301,-433.0,0.00014835,2]
[406944570,1772325043310,-6178.14727256,0.00014855,2]
[406944572,1772325043320,-305.55786491,0.00014872,2]
[406944573,1772325043329,-166.66,0.00014877,2]
[406944574,1772325043339,-684.0,0.00014879,3]
[406944575,1772325043348,-521.62,0.00014895,2]
[406944576,1772325043357,-155.0,0.00014897,2]
[406944577,1772325043366,-250.0,0.00015,2]
[406944578,1772325043376,-1000.0,0.00015017,2]
[406944580,1772325043385,-1000.0,0.00015017,2]
[406944581,1772325043395,-1000.0,0.00015017,2]
[406944582,1772325043405,-1000.0,0.00015017,2]
[406944583,1772325043414,-958.68499362,0.00015017,2]
[406944584,1772325043423,-151.0,0.00015017,2]
[406944585,1772325043432,-442.23228,0.00015017,2]
[406944586,1772325043442,-447.0,0.00015049,2]
[406944587,1772325043451,-2749.7,0.00015068,2]
[406944588,1772325043460,-267.35,0.00015068,2]
[406944589,1772325043470,-151.0,0.00015068,2]
[406944590,1772325043479,-151.0,0.00015068,2]
[406944591,1772325043493,-151.0,0.00015068,2]
[406944592,1772325043504,-151.0,0.00015068,2]
[406944593,1772325043513,-151.0,0.00015068,2]
[406944594,1772325043523,-151.0,0.00015068,2]
[406944595,1772325043534,-151.0,0.00015068,2]
[406944596,1772325043545,-151.0,0.00015068,2]
[406944597,1772325043555,-151.0,0.00015068,2]
[406944598,1772325043566,-151.0,0.00015068,2]
[406944599,1772325043576,-151.0,0.00015068,2]
[406944600,1772325043586,-151.0,0.00015068,2]
[406944601,1772325043596,-151.0,0.00015068,2]
[406944602,1772325043607,-151.0,0.00015068,2]
[406944603,1772325043618,-151.0,0.00015068,2]
[406944604,1772325043628,-151.0,0.00015068,2]
[406944605,1772325043640,-151.0,0.00015068,2]
[406944606,1772325043650,-151.0,0.00015068,2]
[406944607,1772325043659,-172.345574,0.00015068,2]
[406944608,1772325043668,-500.0,0.00015116,2]
[406944609,1772325043678,-200.0,0.00015118,2]
[406944610,1772325043687,-6731.20722215,0.00015162,2]
[406944611,1772325043697,-521.64,0.00015168,2]
[406944612,1772325043706,-168.0,0.00015181,2]
[406944613,1772325043716,-260.85479433,0.00015213,2]
[406944614,1772325043725,-442.23228,0.00015217,2]
[406944615,1772325043734,-1000.0,0.00015321,2]
[406944616,1772325043743,-437.54577261,0.00015321,2]
[406944617,1772325043752,-1000.0,0.00015321,2]
[406944618,1772325043762,-1000.0,0.00015321,2]
[406944619,1772325043772,-1000.0,0.00015321,2]
[406944620,1772325043782,-500.0,0.00015321,2]
[406944621,1772325043792,-1000.0,0.00015321,2]
[406944622,1772325043803,-1118.86499239,0.00015321,2]
[406944623,1772325043813,-1000.0,0.00015321,2]
[406944624,1772325043823,-203.36470484,0.00015321,2]
[406944625,1772325043832,-1009.53925467,0.00015321,2]
[406944626,1772325043842,-1000.0,0.00015321,2]
[406944627,1772325043851,-1000.0,0.00015321,2]
[406944628,1772325043860,-1000.0,0.00015321,2]
[406944629,1772325043870,-684.0,0.00015324,3]
[406944630,1772325043880,-350.0,0.00015324,2]
[406944631,1772325043889,-1264.910961,0.00015335,2]
[406944632,1772325043900,-1600.0,0.00015337,2]
[406944633,1772325043910,-198.182847,0.00015342,7]
[406944634,1772325043920,-6178.14727256,0.00015363,2]
[406944635,1772325043930,-450.27531529,0.00015372,2]
[406944636,1772325043939,-234.465008,0.00015377,2]
[406944637,1772325043948,-442.23228,0.00015417,2]
[406944638,1772325043958,-166.66,0.00015424,2]
[406944639,1772325043967,-656.0,0.00015449,2]
[406944640,1772325043976,-168.0,0.0001547,2]
[406944641,1772325043985,-388.45423009,0.0001549,3]
[406944642,1772325043994,-656.0,0.00015498,2]
[406944643,1772325044003,-656.0,0.00015504,2]
[406944644,1772325044012,-1305.05,0.00015505,2]
[406944645,1772325044023,-921.0,0.00015505,2]
[406944646,1772325044032,-1211.0,0.00015505,2]
[406944647,1772325044041,-1053.522,0.00015505,2]
[406944648,1772325044050,-162.996,0.00015505,2]
[406944649,1772325044060,-3499.0,0.00015505,2]
[406944650,1772325044069,-875.2606521,0.00015507,2]
[406944651,1772325044079,-350.0,0.00015523,2]
[406944652,1772325044089,-656.0,0.00015549,2]
[406944653,1772325044098,-1000.0,0.0001556,2]
[406944654,1772325044107,-1000.0,0.0001556,2]
[406944655,1772325044117,-1000.0,0.0001556,2]
[406944656,1772325044126,-1000.0,0.0001556,2]
[406944657,1772325044135,-1000.0,0.0001556,2]
[406944658,1772325044145,-1000.0,0.0001556,2]
[406944659,1772325044154,-1000.0,0.0001556,2]
[406944660,1772325044163,-1000.0,0.0001556,2]
[406944661,1772325044172,-1000.0,0.0001556,2]
[406944662,1772325044182,-1000.0,0.0001556,2]
[406944663,1772325044191,-1000.0,0.0001556,2]
[406944664,1772325044200,-1000.0,0.0001556,2]
[406944665,1772325044209,-1000.0,0.0001556,2]
[406944666,1772325044219,-1000.0,0.0001556,2]
[406944667,1772325044228,-1000.0,0.0001556,2]
[406944668,1772325044238,-303.18,0.0001556,2]
[406944669,1772325044247,-350.0,0.00015606,2]
[406944670,1772325044257,-442.23228,0.00015617,2]
[406944671,1772325044266,-2954.05351935,0.00015618,2]
[406944672,1772325044275,-554.5421213,0.00015618,2]
[406944673,1772325044285,-305.55786491,0.00015629,2]
[406944674,1772325044294,-269.0,0.00015721,2]
[406944675,1772325044303,-215.0,0.00015721,2]
[406944676,1772325044313,-150.0,0.00015721,2]
[406944677,1772325044323,-150.182,0.00015721,2]
[406944678,1772325044332,-150.05,0.00015721,2]
[406944679,1772325044342,-150.101,0.00015721,2]
[406944680,1772325044351,-150.0,0.00015721,2]
[406944681,1772325044361,-150.0,0.00015721,2]
[406944682,1772325044371,-150.203,0.00015721,2]
[406944683,1772325044381,-150.0,0.00015721,2]
[406944684,1772325044390,-151.0,0.00015721,2]
[406944685,1772325044399,-2749.7,0.00015753,2]
[406944686,1772325044408,-282.2397853,0.00015759,2]
[406944687,1772325044417,-684.0,0.00015769,3]
[406944688,1772325044427,-182.34,0.00015796,2]
[406944689,1772325044435,-350.0,0.00015811,3]
[406944690,1772325044445,-442.23228,0.00015817,2]
[406944691,1772325044454,-656.0,0.00015825,2]
[406944692,1772325044463,-166.68,0.00015845,2]
[406944693,1772325044473,-350.0,0.00015845,2]
[406944694,1772325044485,-1500.0,0.00015868,2]
[406944695,1772325044495,-1082.85827946,0.00015868,2]
[406944696,1772325044504,-1000.0,0.00015868,2]
[406944697,1772325044513,-500.0,0.00015868,2]
[406944698,1772325044522,-1500.0,0.00015868,2]
[406944699,1772325044534,-1000.0,0.00015868,2]
[406944700,1772325044545,-1500.0,0.00015868,2]
[406944701,1772325044555,-1500.0,0.00015868,2]
[406944702,1772325044564,-1500.0,0.00015868,2]
[406944703,1772325044575,-6178.14727256,0.0001587,2]
[406944704,1772325044585,-160.0,0.00015872,2]
[406944705,1772325044594,-174.04581251,0.00015872,2]
[406944706,1772325044603,-150.0,0.000159,2]
[406944707,1772325044613,-150.0,0.000159,2]
[406944708,1772325044623,-150.0,0.000159,2]
[406944709,1772325044632,-150.0,0.000159,2]
[406944710,1772325044642,-150.0,0.000159,2]
[406944711,1772325044651,-150.0,0.000159,2]
[406944712,1772325044660,-656.0,0.00015944,2]
[406944713,1772325044670,-5066.6509523,0.0001596,2]
[406944714,1772325044679,-153.03143577,0.00015963,2]
[406944715,1772325044689,-6782.3536,0.00016,2]
[406944716,1772325044699,-442.23228,0.00016017,2]
[406944717,1772325044708,-1000.0,0.0001605,2]
[406944718,1772325044717,-164682.7677783,0.0001611,2]
[406944719,1772325044726,-656.0,0.00016115,2]
[406944720,1772325044736,-9999.99,0.00016116,2]
[406944721,1772325044750,-656.0,0.0001614,2]
[406944722,1772325044760,-350.0,0.00016167,2]
[406944723,1772325044770,-500.0,0.00016199,2]
[406944724,1772325044894,-5000.00731117,0.000162,5]
[406944725,1772325044904,-684.0,0.00016214,3]
[406944726,1772325044914,-155.0,0.00016252,2]
[406944727,1772325044923,-656.0,0.00016298,2]
[406944728,1772325044933,-168.0,0.00016311,2]
[406944729,1772325044942,-656.0,0.00016353,2]
[406944730,1772325044952,-500.0,0.00016355,2]
[406944731,1772325044962,-500.0,0.00016356,2]
[406944732,1772325044972,-1100.0,0.00016356,2]
[406944733,1772325044981,-800.0,0.00016356,2]
[406944734,1772325044994,-6178.14727256,0.00016378,2]
[406944735,1772325045004,-305.55786491,0.00016386,2]
[406944736,1772325045014,-214.75633691,0.00016386,2]
[406944737,1772325045023,-168.0,0.0001639,2]
[406944738,1772325045032,-845.0,0.000164,2]
[406944739,1772325045042,-845.0,0.000164,2]
[406944740,1772325045051,-350.0,0.000164,3]
[406944741,1772325045061,-798.53948142,0.00016416,2]
[406944742,1772325045071,-279.13777388,0.00016416,2]
[406944743,1772325045080,-2000.0,0.00016416,2]
[406944744,1772325045089,-12004.4721788,0.00016423,2]
[406944745,1772325045099,-8579.447755,0.00016423,2]
[406944746,1772325045109,-656.0,0.00016435,2]
[406944747,1772325045120,-308.99,0.00016438,2]
[406944748,1772325045131,-2749.7,0.00016438,2]
[406944749,1772325045141,-228.15,0.00016438,2]
[406944750,1772325045151,-151.0,0.00016438,2]
[406944751,1772325045161,-151.0,0.00016438,2]
[406944752,1772325045171,-151.0,0.00016438,2]
[406944753,1772325045185,-151.0,0.00016438,2]
[406944754,1772325045194,-151.0,0.00016438,2]
[406944755,1772325045203,-151.0,0.00016438,2]
[406944756,1772325045213,-151.0,0.00016438,2]
[406944757,1772325045222,-151.0,0.00016438,2]
[406944758,1772325045232,-252.729421,0.00016438,2]
[406944759,1772325045242,-266.81662109,0.00016438,2]
[406944760,1772325045252,-151.0,0.00016438,2]
[406944761,1772325045262,-151.0,0.00016438,2]
[406944762,1772325045271,-218.23034,0.00016438,2]
[406944763,1772325045281,-300.0,0.00016438,3]
[406944764,1772325045291,-300.0,0.00016438,3]
[406944765,1772325045300,-300.0,0.00016438,3]
[406944766,1772325045310,-300.0,0.00016438,3]
[406944767,1772325045320,-300.0,0.00016438,3]
[406944768,1772325045330,-151.0,0.00016438,2]
[406944769,1772325045339,-151.0,0.00016438,2]
[406944770,1772325045349,-151.0,0.00016438,2]
[406944771,1772325045359,-151.0,0.00016438,2]
[406944772,1772325045369,-151.0,0.00016438,2]
[406944773,1772325045381,-151.0,0.00016438,2]
[406944774,1772325045392,-151.0,0.00016438,2]
[406944775,1772325045402,-151.0,0.00016438,2]
[406944776,1772325045412,-151.0,0.00016438,2]
[406944777,1772325045422,-199.62562,0.00016438,2]
[406944778,1772325045432,-656.0,0.00016442,2]
[406944779,1772325045443,-350.0,0.0001646,3]
[406944780,1772325045453,-160.0,0.000165,30]
[406944781,1772325045464,-238.98825351,0.00016601,2]
[406944782,1772325045483,-168.0,0.00016654,2]
[406944783,1772325045501,-684.0,0.00016659,3]
[406944784,1772325045511,-656.0,0.00016696,2]
[406944785,1772325045521,-36745.692348,0.00016707,2]
[406944786,1772325045530,-845.0,0.0001672,2]
[406944787,1772325045541,-3007.03326018,0.00016738,2]
[406944788,1772325045552,-656.0,0.00016743,2]
[406944789,1772325045563,-168.0,0.0001676,2]
[406944790,1772325045573,-612.0,0.00016839,2]
[406944791,1772325045583,-150.0,0.00016839,2]
[406944792,1772325045592,-150.0,0.00016839,2]
[406944793,1772325045603,-150.0,0.00016839,2]
[406944794,1772325045612,-238.0,0.00016839,2]
[406944795,1772325045622,-656.0,0.00016856,2]
[406944796,1772325045632,-1600.0,0.00016871,2]
[406944797,1772325045642,-264.6499789,0.00016871,2]
[406944798,1772325045651,-6178.14727256,0.00016885,2]
[406944799,1772325045661,-168.0,0.00016898,2]
[406944800,1772325045670,-157.79,0.00016934,2]
[406944801,1772325045680,-2034.65,0.00016935,2]
[406944802,1772325045690,-2500.0,0.00016964,2]
[406944803,1772325045700,-168.0,0.00016979,2]
[406944804,1772325045710,-6526.88277463,0.00017,2]
[406944805,1772325045720,-1537.04,0.00017,2]
[406944806,1772325045729,-500.0,0.00017,2]
[406944807,1772325045739,-300.0,0.00017,2]
[406944808,1772325045748,-182.34,0.00017028,2]
[406944809,1772325045758,-845.0,0.0001704,2]
[406944810,1772325045768,-2678.5597997,0.0001709,2]
[406944811,1772325045777,-1914.3335515,0.0001709,2]
[406944812,1772325045796,-495.49145407,0.000171,2]
[406944813,1772325045808,-684.0,0.00017104,3]
[406944814,1772325045818,-54459.19858468,0.0001711,2]
[406944815,1772325045828,-150.0,0.0001711,2]
[406944816,1772325045838,-213.0,0.0001711,2]
[406944817,1772325045848,-302.46,0.0001711,2]
[406944818,1772325045858,-351.60728159,0.0001711,2]
[406944819,1772325045868,-305.55786491,0.00017143,2]
[406944820,1772325045878,-150.0,0.00017184,30]
[406944821,1772325045888,-182.34,0.00017264,2]
[406944822,1772325045898,-1981.090459,0.00017315,7]
[406944823,1772325045908,-5146.11668,0.00017315,7]
[406944824,1772325045918,-556.0,0.00017355,2]
[406944825,1772325045928,-150.0,0.00017355,2]
[406944826,1772325045938,-150.0,0.00017355,2]
[406944827,1772325045948,-150.0,0.00017355,2]
[406944828,1772325045958,-150.0,0.00017355,2]
[406944829,1772325045969,-260.0,0.00017355,2]
[406944830,1772325045978,-845.0,0.0001736,2]
[406944831,1772325045988,-852.0,0.0001736,2]
[406944832,1772325045998,-6178.14727256,0.00017393,2]
[406944833,1772325046008,-2000.0,0.000175,5]
[406944834,1772325046018,-3000.0,0.00017512,2]
[406944835,1772325046029,-684.0,0.00017549,3]
[406944836,1772325046038,-168.0,0.00017613,2]
[406944837,1772325046048,-1000.0,0.00017655,2]
[406944838,1772325046058,-168.0,0.00017726,2]
[406944839,1772325046069,-500.0,0.00017726,7]
[406944840,1772325046079,-1100.0,0.00017726,7]
[406944841,1772325046088,-800.0,0.00017726,7]
[406944842,1772325046099,-441.0,0.00017735,2]
[406944843,1772325046109,-264.0,0.00017744,2]
[406944844,1772325046119,-177.0,0.0001775,2]
[406944845,1772325046129,-441.0,0.00017776,2]
[406944846,1772325046139,-2000.0,0.000178,5]
[406944847,1772325046149,-441.0,0.00017802,2]
[406944848,1772325046159,-441.0,0.00017806,2]
[406944849,1772325046169,-441.0,0.00017808,2]
[406944850,1772325046179,-500.0,0.00017808,2]
[406944851,1772325046190,-500.0,0.00017808,2]
[406944852,1772325046200,-500.0,0.00017808,2]
[406944853,1772325046210,-500.0,0.00017808,2]
[406944854,1772325046220,-500.0,0.00017808,2]
[406944855,1772325046230,-500.0,0.00017808,2]
[406944856,1772325046240,-500.0,0.00017808,2]
[406944857,1772325046249,-500.0,0.00017808,2]
[406944858,1772325046259,-500.0,0.00017808,2]
[406944859,1772325046268,-500.0,0.00017808,2]
[406944860,1772325046277,-500.0,0.00017808,2]
[406944861,1772325046287,-500.0,0.00017808,2]
[406944862,1772325046296,-500.0,0.00017808,2]
[406944863,1772325046305,-500.0,0.00017808,2]
[406944864,1772325046314,-500.0,0.00017808,2]
[406944865,1772325046324,-500.0,0.00017808,2]
[406944866,1772325046333,-382.54207749,0.00017808,2]
[406944867,1772325046344,-815.07764879,0.00017808,2]
[406944868,1772325046354,-815.07764879,0.00017808,2]
[406944869,1772325046363,-815.07764879,0.00017808,2]
[406944870,1772325046373,-815.07764879,0.00017808,2]
[406944871,1772325046383,-815.07764879,0.00017808,2]
[406944872,1772325046392,-815.07764879,0.00017808,2]
[406944873,1772325046402,-815.07764879,0.00017808,2]
[406944874,1772325046411,-815.07764879,0.00017808,2]
[406944875,1772325046420,-815.07764879,0.00017808,2]
[406944876,1772325046430,-815.07764879,0.00017808,2]
[406944877,1772325046440,-1000.0,0.00017808,2]
[406944878,1772325046450,-261.7706833,0.00017808,2]
[406944879,1772325046460,-459.72607117,0.00017816,2]
[406944880,1772325046470,-291.0,0.00017819,2]
[406944881,1772325046479,-263.08588841,0.00017855,2]
[406944883,1772325046492,-25000.0,0.00017865,3]
[406944885,1772325046502,-25000.0,0.00017874,3]
[406944887,1772325046511,-25000.0,0.00017874,3]
[406944888,1772325046521,-441.0,0.00017875,2]
[406944889,1772325046530,-175.7331849,0.00017876,3]
[406944890,1772325046540,-500.0,0.00017882,2]
[406944891,1772325046549,-25000.0,0.00017882,3]
[406944892,1772325046559,-25000.0,0.00017882,3]
[406944893,1772325046569,-441.0,0.00017887,2]
[406944894,1772325046579,-25000.0,0.00017891,3]
[406944895,1772325046588,-25000.0,0.00017891,3]
[406944896,1772325046597,-25000.0,0.00017891,3]
[406944897,1772325046606,-150.0,0.000179,2]
[406944898,1772325046614,-25000.0,0.000179,3]
[406944899,1772325046623,-25000.0,0.000179,3]
[406944900,1772325046632,-305.55786491,0.000179,2]
[406944901,1772325046641,-260.85479433,0.000179,2]
[406944902,1772325046650,-6178.14727256,0.000179,2]
[406944903,1772325046659,-25000.0,0.000179,3]
[406944904,1772325046667,-310.29162466,0.000179,2]
[406944905,1772325046677,-2954.05351935,0.000179,2]
[406944907,1772325046687,-554.5421213,0.000179,2]
[406944909,1772325046697,-441.0,0.0001793,2]
[406944910,1772325046706,-575.0,0.00017973,2]
[406944912,1772325046715,-441.0,0.00017982,2]
[406944913,1772325046725,-684.0,0.00017995,3]
[406944914,1772325046734,-500.0,0.00017999,2]
[406944915,1772325046743,-1202185.90100367,0.00018,2]
[406944916,1772325046881,-1124.01073387,0.00018,2]
[406944917,1772325046894,-1674.11,0.00018,2]
[406944918,1772325046906,-687.915368,0.00018,2]
[406944919,1772325046918,-606.6000014,0.00018,2]
[406944920,1772325046932,-20393.3999986,0.00018,2]
[406944921,1772325046949,-2500.00000003,0.00018,2]
[406944922,1772325047029,-256.2816,0.00016438,2]
[406944923,1772325047177,-1318.23011656,0.00012551,2]
[406944924,1772325047187,-1318.23011656,0.00012551,2]
[406944925,1772325047196,-1318.23011656,0.00012551,2]
[406944926,1772325047205,-1318.23011656,0.00012551,2]
[406944927,1772325047215,-1318.23011656,0.00012551,2]
[406944928,1772325047225,-1318.23011656,0.00012551,2]
[406944929,1772325047235,-1318.23011656,0.00012551,2]
[406944930,1772325047245,-1318.23011656,0.00012551,2]
[406944931,1772325047255,-1318.23011656,0.00012551,2]
[406944932,1772325047264,-12992.9544696,0.00013433,2]
[406944933,1772325047274,-12992.9544696,0.00015269,2]
[406944934,1772325047283,-743.7184,0.00016438,2]
[406944935,1772325047292,-1000.0,0.00016712,2]
[406944936,1772325047301,-1000.0,0.00016986,2]
[406944937,1772325047311,-12992.9544696,0.00017105,2]
[406944938,1772325047320,-1000.0,0.0001726,2]
[406944939,1772325047329,-1000.0,0.00017534,2]
[406944940,1772325047339,-46407.34722984,0.00018,2]
[406944985,1772325900955,396.65,7.555e-05,2]
[406944986,1772325901185,396.65,7.88e-05,2]
[406944995,1772326231749,-396.65,8.205e-05,2]
[406944996,1772326231759,-396.65,8.531e-05,2]
[406944997,1772326231768,-396.65,8.856e-05,2]
[406944998,1772326231777,-396.65,9.181e-05,2]
[406944999,1772326231786,-396.65,9.507e-05,2]
[406945000,1772326231796,-396.65,9.832e-05,2]
[406945001,1772326231805,-172.39968628,9.832e-05,2]
[406945002,1772326231815,-2586.42215433,0.00010024,2]
[406945003,1772326231825,-396.65,0.00010157,2]
[406945004,1772326231839,-396.65,0.00010482,2]
[406945005,1772326231849,-354.299374,0.00010576,2]
[406945006,1772326231859,-180.558253,0.0001061,2]
[406945007,1772326231870,-396.65,0.00010808,2]
[406945008,1772326231879,-1200.0,0.00011012,2]
[406945009,1772326231889,-1205.0,0.00011013,2]
[406945010,1772326231898,-396.65,0.00011133,2]
[406945011,1772326231908,-241.0,0.00011168,2]
[406945012,1772326231918,-172.26424551,0.00011191,2]
[406945013,1772326231931,-158.73575449,0.00011191,2]
[406945014,1772326231940,-248.26424551,0.00011248,2]
[406945015,1772326231952,-43.73575449,0.00011248,2]
[406945016,1772326231961,-252.26424548,0.00011407,2]
[406945017,1772326231976,-247.73575452,0.00011407,2]
[406945018,1772326231986,-396.65,0.00011458,2]
[406945019,1772326231995,-396.65,0.00011784,2]
[406945020,1772326232005,-350.22279615,0.0001207,2]
[406945021,1772326232014,-269.76024375,0.0001207,2]
[406945022,1772326232023,-396.65,0.00012109,2]
[406945023,1772326232032,-648.0,0.00012113,2]
[406945024,1772326232042,-781.77511509,0.00012238,2]
[406945025,1772326232051,-396.65,0.00012434,2]
[406945026,1772326232061,-150.0,0.000127,2]
[406945027,1772326232070,-500.0,0.000127,2]
[406945028,1772326232080,-225.697816,0.00012732,2]
[406945029,1772326232090,-47.95611985,0.0001276,2]
[406945030,1772326232103,-348.69388015,0.0001276,2]
[406945031,1772326232114,-607.87594901,0.00012886,2]
[406945032,1772326232125,-396.65,0.00013085,2]
[406945033,1772326232135,-1000.0,0.00013248,2]
[406945034,1772326232145,-737.48362104,0.000133,2]
[406945035,1772326232155,-396.65,0.0001341,2]